fUSD/lending_fUSD_20241004
["ID","MTS","AMOUNT","RATE_DAILY","PERIOD"]
[339813326,1728022441232,-1427.70761,0.00012329,2]
[339813327,1728022441258,-280.890637,0.00012329,2]
[339813328,1728022441284,-151.0,0.00012329,2]
[339813329,1728022441311,-151.0,0.00012329,2]
[339813330,1728022441337,-151.0,0.00012329,2]
[339813331,1728022441365,-881.194867,0.00012329,2]
[339813332,1728022441389,-881.194867,0.00012329,2]
[339813333,1728022441414,-881.194867,0.00012329,2]
[339813334,1728022441439,-881.194867,0.00012329,2]
[339813335,1728022441465,-881.194867,0.00012329,2]
[339813336,1728022441491,-881.194867,0.00012329,2]
[339813337,1728022441514,-881.194867,0.00012329,2]
[339813338,1728022441540,-881.194875,0.00012329,2]
[339813339,1728022441567,-389.595712,0.00012329,2]
[339813340,1728022441591,-389.595712,0.00012329,2]
[339813341,1728022441614,-389.595712,0.00012329,2]
[339813342,1728022441639,-389.595712,0.00012329,2]
[339813343,1728022441664,-389.595712,0.00012329,2]
[339813344,1728022441689,-389.595712,0.00012329,2]
[339813345,1728022441712,-389.595712,0.00012329,2]
[339813346,1728022441738,-389.59571,0.00012329,2]
[339813347,1728022441764,-151.0,0.00012329,2]
[339813348,1728022441790,-151.0,0.00012329,2]
[339813349,1728022441816,-151.0,0.00012329,2]
[339813350,1728022441841,-151.0,0.00012329,2]
[339813351,1728022441868,-942.582867,0.00012329,2]
[339813352,1728022441894,-942.582867,0.00012329,2]
[339813353,1728022441920,-942.582867,0.00012329,2]
[339813354,1728022441948,-942.582867,0.00012329,2]
[339813355,1728022441974,-942.582867,0.00012329,2]
[339813356,1728022442003,-942.582867,0.00012329,2]
[339813357,1728022442031,-942.582867,0.00012329,2]
[339813358,1728022442059,-942.582868,0.00012329,2]
[339813359,1728022442086,-617.548654,0.00012329,2]
[339813360,1728022442114,-617.548654,0.00012329,2]
[339813361,1728022442140,-617.548654,0.00012329,2]
[339813362,1728022442167,-617.548654,0.00012329,2]
[339813363,1728022442193,-617.548654,0.00012329,2]
[339813364,1728022442220,-617.548654,0.00012329,2]
[339813365,1728022442246,-617.548654,0.00012329,2]
[339813366,1728022442271,-617.548646,0.00012329,2]
[339813367,1728022442296,-1656.126228,0.00012329,2]
[339813368,1728022442324,-1656.126228,0.00012329,2]
[339813369,1728022442355,-1656.126228,0.00012329,2]
[339813370,1728022442381,-251.213924,0.00012329,2]
[339813371,1728022442409,-251.213924,0.00012329,2]
[339813372,1728022442436,-251.213924,0.00012329,2]
[339813373,1728022442464,-1656.126228,0.00012329,2]
[339813374,1728022442491,-1656.126228,0.00012329,2]
[339813375,1728022442517,-1656.126222,0.00012329,2]
[339813376,1728022442544,-251.213924,0.00012329,2]
[339813377,1728022442572,-251.213924,0.00012329,2]
[339813378,1728022442598,-251.213927,0.00012329,2]
[339813379,1728022442625,-151.0,0.00012329,2]
[339813380,1728022442652,-151.0,0.00012329,2]
[339813381,1728022442679,-151.0,0.00012329,2]
[339813382,1728022442708,-151.0,0.00012329,2]
[339813383,1728022442751,-609.039414,0.00012329,2]
[339813384,1728022442778,-609.039414,0.00012329,2]
[339813385,1728022442804,-609.039414,0.00012329,2]
[339813386,1728022442830,-609.039414,0.00012329,2]
[339813387,1728022442856,-609.039414,0.00012329,2]
[339813388,1728022442883,-609.039414,0.00012329,2]
[339813389,1728022442908,-609.039414,0.00012329,2]
[339813390,1728022442937,-609.039409,0.00012329,2]
[339813391,1728022442965,-598.670335,0.00012329,2]
[339813392,1728022442995,-598.670335,0.00012329,2]
[339813393,1728022443023,-598.670335,0.00012329,2]
[339813394,1728022443051,-598.670335,0.00012329,2]
[339813395,1728022443077,-598.670335,0.00012329,2]
[339813396,1728022443104,-598.670335,0.00012329,2]
[339813397,1728022443129,-598.670335,0.00012329,2]
[339813398,1728022443153,-598.67033,0.00012329,2]
[339813399,1728022443178,-1470.325177,0.00012329,2]
[339813400,1728022443204,-1470.325177,0.00012329,2]
[339813401,1728022443228,-426.845706,0.00012329,2]
[339813402,1728022443253,-1470.325177,0.00012329,2]
[339813403,1728022443278,-426.845706,0.00012329,2]
[339813404,1728022443304,-1470.325177,0.00012329,2]
[339813405,1728022443329,-426.845706,0.00012329,2]
[339813406,1728022443355,-426.845706,0.00012329,2]
[339813407,1728022443499,-1470.325177,0.00012329,2]
[339813408,1728022443527,-213.329685,0.00012329,2]
[339813409,1728022443554,-213.329685,0.00012329,2]
[339813410,1728022443580,-1470.325177,0.00012329,2]
[339813411,1728022443606,-426.845706,0.00012329,2]
[339813412,1728022443632,-213.329685,0.00012329,2]
[339813413,1728022443658,-426.845706,0.00012329,2]
[339813414,1728022443686,-1470.325177,0.00012329,2]
[339813415,1728022443712,-213.329685,0.00012329,2]
[339813416,1728022443737,-426.845706,0.00012329,2]
[339813417,1728022443765,-1470.325168,0.00012329,2]
[339813418,1728022443791,-426.845697,0.00012329,2]
[339813419,1728022443817,-213.329685,0.00012329,2]
[339813420,1728022443841,-213.329685,0.00012329,2]
[339813421,1728022443866,-213.329685,0.00012329,2]
[339813422,1728022443890,-213.32969,0.00012329,2]
[339813423,1728022443913,-228.02957,0.00012329,2]
[339813424,1728022443938,-151.556288,0.00012329,2]
[339813425,1728022443963,-871.887096,0.00012329,2]
[339813426,1728022443988,-871.887096,0.00012329,2]
[339813427,1728022444014,-871.887096,0.00012329,2]
[339813428,1728022444039,-871.887096,0.00012329,2]
[339813429,1728022444063,-871.887096,0.00012329,2]
[339813430,1728022444088,-871.887093,0.00012329,2]
[339813431,1728022444113,-1768.949054,0.00012329,2]
[339813432,1728022444137,-1768.949054,0.00012329,2]
[339813433,1728022444164,-1768.949054,0.00012329,2]
[339813434,1728022444190,-1768.949054,0.00012329,2]
[339813435,1728022444216,-1768.949054,0.00012329,2]
[339813436,1728022444242,-1768.949052,0.00012329,2]
[339813437,1728022444267,-2100.46101,0.00012329,2]
[339813438,1728022444293,-2100.46101,0.00012329,2]
[339813439,1728022444317,-2100.46101,0.00012329,2]
[339813440,1728022444345,-2100.46101,0.00012329,2]
[339813441,1728022444371,-2100.46101,0.00012329,2]
[339813442,1728022444396,-2100.46101,0.00012329,2]
[339813443,1728022444424,-2100.46101,0.00012329,2]
[339813444,1728022444450,-2100.461003,0.00012329,2]
[339813445,1728022444476,-242.843082,0.00012329,2]
[339813446,1728022444502,-242.843082,0.00012329,2]
[339813447,1728022444527,-242.843082,0.00012329,2]
[339813448,1728022444553,-155.697226,0.00012329,2]
[339813449,1728022444577,-155.697226,0.00012329,2]
[339813450,1728022444602,-242.843082,0.00012329,2]
[339813451,1728022444626,-155.697226,0.00012329,2]
[339813452,1728022444650,-242.843082,0.00012329,2]
[339813453,1728022444675,-242.843079,0.00012329,2]
[339813454,1728022444698,-155.697226,0.00012329,2]
[339813455,1728022444721,-155.697226,0.00012329,2]
[339813456,1728022444743,-155.697229,0.00012329,2]
[339813457,1728022444767,-295.57873,0.00012329,2]
[339813458,1728022444789,-295.57873,0.00012329,2]
[339813459,1728022444812,-295.57873,0.00012329,2]
[339813460,1728022444835,-295.57873,0.00012329,2]
[339813461,1728022444858,-295.57873,0.00012329,2]
[339813462,1728022444881,-295.578734,0.00012329,2]
[339813463,1728022444905,-270.062677,0.00012329,2]
[339813464,1728022444928,-270.062677,0.00012329,2]
[339813465,1728022444951,-270.062677,0.00012329,2]
[339813466,1728022444975,-270.062677,0.00012329,2]
[339813467,1728022444998,-270.062677,0.00012329,2]
[339813468,1728022445021,-270.062677,0.00012329,2]
[339813469,1728022445044,-2184.35291,0.00012329,2]
[339813470,1728022445068,-2184.35291,0.00012329,2]
[339813471,1728022445092,-2184.35291,0.00012329,2]
[339813472,1728022445115,-2184.35291,0.00012329,2]
[339813473,1728022445139,-2184.35291,0.00012329,2]
[339813474,1728022445163,-2184.352905,0.00012329,2]
[339813475,1728022445187,-1811.444367,0.00012329,2]
[339813476,1728022445214,-1811.444367,0.00012329,2]
[339813477,1728022445239,-1811.444367,0.00012329,2]
[339813478,1728022445263,-1811.444367,0.00012329,2]
[339813479,1728022445286,-234.948739,0.00012329,2]
[339813480,1728022445309,-234.948739,0.00012329,2]
[339813481,1728022445333,-234.948739,0.00012329,2]
[339813482,1728022445358,-1811.444367,0.00012329,2]
[339813483,1728022445382,-1811.444367,0.00012329,2]
[339813484,1728022445406,-1811.444367,0.00012329,2]
[339813485,1728022445431,-153.860509,0.00012329,2]
[339813486,1728022445456,-1811.444361,0.00012329,2]
[339813487,1728022445480,-153.860509,0.00012329,2]
[339813488,1728022445505,-153.860509,0.00012329,2]
[339813489,1728022445528,-234.948739,0.00012329,2]
[339813490,1728022445553,-234.948739,0.00012329,2]
[339813491,1728022445576,-234.948738,0.00012329,2]
[339813492,1728022445599,-153.860509,0.00012329,2]
[339813493,1728022445623,-153.860509,0.00012329,2]
[339813494,1728022445646,-153.860509,0.00012329,2]
[339813495,1728022445670,-151.0,0.00012329,2]
[339813496,1728022445694,-151.0,0.00012329,2]
[339813497,1728022445718,-151.0,0.00012329,2]
[339813498,1728022445743,-151.0,0.00012329,2]
[339813499,1728022445770,-158.351482,0.00012329,2]
[339813500,1728022445795,-158.351482,0.00012329,2]
[339813501,1728022445818,-158.351482,0.00012329,2]
[339813502,1728022445844,-158.351482,0.00012329,2]
[339813503,1728022445870,-158.351482,0.00012329,2]
[339813504,1728022445895,-158.351482,0.00012329,2]
[339813505,1728022445921,-158.351482,0.00012329,2]
[339813506,1728022445947,-158.351491,0.00012329,2]
[339813507,1728022445971,-339.417552,0.00012329,2]
[339813508,1728022445997,-339.417552,0.00012329,2]
[339813509,1728022446021,-339.417552,0.00012329,2]
[339813510,1728022446048,-197.436349,0.00012329,2]
[339813511,1728022446178,-197.436349,0.00012329,2]
[339813512,1728022446203,-197.436349,0.00012329,2]
[339813513,1728022446227,-339.417552,0.00012329,2]
[339813514,1728022446258,-339.417552,0.00012329,2]
[339813515,1728022446282,-339.417557,0.00012329,2]
[339813516,1728022446307,-197.436349,0.00012329,2]
[339813517,1728022446331,-197.436349,0.00012329,2]
[339813518,1728022446357,-197.436347,0.00012329,2]
[339813519,1728022446381,-1143.690867,0.00012329,2]
[339813520,1728022446406,-1143.690867,0.00012329,2]
[339813521,1728022446430,-1143.690867,0.00012329,2]
[339813522,1728022446454,-158.910483,0.00012329,2]
[339813523,1728022446478,-1143.690867,0.00012329,2]
[339813524,1728022446504,-158.910483,0.00012329,2]
[339813525,1728022446528,-158.910483,0.00012329,2]
[339813526,1728022446553,-158.910483,0.00012329,2]
[339813527,1728022446577,-1143.690867,0.00012329,2]
[339813528,1728022446601,-158.910483,0.00012329,2]
[339813529,1728022446626,-1143.690867,0.00012329,2]
[339813530,1728022446650,-158.910483,0.00012329,2]
[339813531,1728022446673,-1143.690867,0.00012329,2]
[339813532,1728022446698,-158.910483,0.00012329,2]
[339813533,1728022446722,-1143.690867,0.00012329,2]
[339813534,1728022446748,-158.910476,0.00012329,2]
[339813535,1728022446772,-151.0,0.00012329,2]
[339813536,1728022446795,-255.125398,0.00012329,2]
[339813537,1728022446820,-214.4191948,0.00012341,2]
[339813538,1728022446844,-1213.34383188,0.00012346,2]
[339813539,1728022446869,-167.34,0.00012445,2]
[339813540,1728022446892,-167.0,0.00012445,2]
[339813541,1728022446916,-166.35,0.00012445,2]
[339813542,1728022446940,-168.79,0.00012445,2]
[339813543,1728022446963,-169.62,0.00012445,2]
[339813544,1728022446987,-1000.88,0.0001245,2]
[339813545,1728022447010,-227.0,0.000125,2]
[339813546,1728022447034,-318.26,0.0001253,2]
[339813547,1728022447058,-317.215993,0.00012594,2]
[339813548,1728022447081,-644.7887968,0.00012594,2]
[339813549,1728022447105,-1769.139252,0.00012603,2]
[339813550,1728022447128,-1769.139252,0.00012603,2]
[339813551,1728022447152,-1769.139252,0.00012603,2]
[339813552,1728022447176,-1769.139252,0.00012603,2]
[339813553,1728022447199,-1769.139252,0.00012603,2]
[339813554,1728022447225,-1769.139252,0.00012603,2]
[339813555,1728022447249,-1769.139252,0.00012603,2]
[339813556,1728022447273,-1769.139252,0.00012603,2]
[339813557,1728022447298,-1769.139252,0.00012603,2]
[339813558,1728022447323,-1769.139252,0.00012603,2]
[339813559,1728022447349,-1769.139252,0.00012603,2]
[339813560,1728022447374,-1769.139252,0.00012603,2]
[339813561,1728022447398,-1769.139252,0.00012603,2]
[339813562,1728022447423,-1769.139252,0.00012603,2]
[339813563,1728022447447,-1769.139252,0.00012603,2]
[339813564,1728022447471,-1769.139252,0.00012603,2]
[339813565,1728022447497,-1769.139252,0.00012603,2]
[339813566,1728022447521,-1769.139252,0.00012603,2]
[339813567,1728022447545,-1769.139252,0.00012603,2]
[339813568,1728022447569,-1769.139246,0.00012603,2]
[339813569,1728022447593,-977.2,0.00012603,2]
[339813570,1728022447617,-587.0,0.00012612,2]
[339813571,1728022447641,-200.0,0.00012663,2]
[339813572,1728022447665,-223.07,0.00012708,2]
[339813573,1728022447691,-1000.0,0.00012748,2]
[339813574,1728022447717,-312.25,0.00012757,2]
[339813575,1728022447741,-1300.0,0.00013,4]
[339813576,1728022447767,-150.0,0.00013,2]
[339813577,1728022447792,-977.2,0.00013151,2]
[339813578,1728022447821,-167.0,0.00013472,2]
[339813579,1728022447847,-223.41,0.00013699,2]
[339813580,1728022447875,-500.0,0.00013699,2]
[339813581,1728022447900,-200.0,0.00013699,2]
[339813582,1728022447927,-147881.149139,0.000138,3]
[339813583,1728022447957,-823.0,0.00013867,2]
[339813584,1728022447982,-3938.663424,0.0001389,2]
[339813585,1728022448007,-334.8481498,0.0001389,2]
[339813586,1728022448031,-680.6287842,0.0001389,2]
[339813587,1728022448054,-1000.88,0.000139,2]
[339813588,1728022448080,-15555.29416,0.000139,3]
[339813589,1728022448105,-3134.216,0.00013913,2]
[339813590,1728022448131,-200.0,0.0001393,2]
[339813591,1728022448157,-152.0,0.0001395,3]
[339813592,1728022448181,-2000.0,0.00013973,2]
[339813593,1728022448208,-223.07,0.00013978,2]
[339813594,1728022448233,-1000.0,0.00014,5]
[339813595,1728022448260,-1000.0,0.00014023,2]
[339813596,1728022448287,-318.26,0.0001406,2]
[339813597,1728022448314,-2143.6235799,0.0001421,7]
[339813598,1728022448343,-152.0,0.00014362,4]
[339813599,1728022448373,-9188.23323693,0.00014456,2]
[339813600,1728022448401,-167.0,0.00014499,2]
[339813601,1728022448431,-152.0,0.00014775,5]
[339813602,1728022448457,-400.0,0.000148,3]
[339813603,1728022448484,-212.37334097,0.000149,2]
[339813604,1728022448508,-212.37334096,0.000149,2]
[339813605,1728022448533,-212.37334096,0.000149,2]
[339813606,1728022448559,-200.0,0.00015,2]
[339813607,1728022448585,-200.0,0.00015,2]
[339813608,1728022448614,-200.0,0.00015,2]
[339813609,1728022448642,-200.0,0.00015,2]
[339813610,1728022448668,-200.0,0.00015,2]
[339813611,1728022448695,-200.0,0.00015,2]
[339813612,1728022448720,-200.0,0.00015,2]
[339813613,1728022448747,-200.0,0.00015,2]
[339813614,1728022448876,-200.0,0.00015,2]
[339813615,1728022448902,-200.0,0.00015,2]
[339813616,1728022448927,-200.0,0.00015,2]
[339813617,1728022448953,-200.0,0.00015,2]
[339813618,1728022448979,-200.0,0.00015,2]
[339813619,1728022449005,-200.0,0.00015,2]
[339813620,1728022449031,-1430.36132639,0.00015,10]
[339813621,1728022449056,-408.57129194,0.00015,10]
[339813622,1728022449084,-150.0,0.00015,2]
[339813623,1728022449113,-200.0,0.00015,2]
[339813624,1728022449142,-200.0,0.00015,2]
[339813625,1728022449169,-697.0,0.00015,2]
[339813626,1728022449194,-1216.0,0.00015,2]
[339813627,1728022449220,-5561.0,0.00015,2]
[339813628,1728022449246,-312.25,0.00015021,2]
[339813629,1728022449273,-300.0,0.00015068,2]
[339813630,1728022449301,-152.0,0.00015187,6]
[339813631,1728022449326,-200.0,0.00015196,2]
[339813632,1728022449356,-1152.0,0.00015247,2]
[339813633,1728022449384,-223.07,0.00015249,2]
[339813634,1728022449410,-1000.0,0.00015298,2]
[339813635,1728022449435,-1000.88,0.0001535,2]
[339813636,1728022449460,-318.26,0.0001559,2]
[339813637,1728022449486,-152.0,0.000156,7]
[339813638,1728022449514,-297.948498,0.000156,5]
[339813639,1728022449540,-515.10471424,0.0001575,2]
[339813640,1728022449566,-161.01977708,0.0001579,2]
[339813641,1728022449591,-200.0,0.00016,3]
[339813642,1728022449618,-900.0,0.00016,6]
[339813643,1728022449643,-9999.99,0.00016116,2]
[339813644,1728022449669,-150.0,0.00016438,2]
[339813645,1728022449695,-300.0,0.00016438,2]
[339813646,1728022449719,-1000.88,0.000168,2]
[339813647,1728022449745,-150.0,0.00016871,2]
[339813648,1728022449770,-200.0,0.00017,4]
[339813649,1728022449794,-250.0,0.00017,2]
[339813650,1728022449819,-318.26,0.0001712,2]
[339813651,1728022449844,-312.25,0.00017285,2]
[339813652,1728022449868,-150.0,0.00017304,2]
[339813653,1728022449893,-223.41,0.00017534,2]
[339813654,1728022449917,-150.0,0.00017736,2]
[339813655,1728022449941,-729.35,0.000179,7]
[339813656,1728022449966,-200.0,0.00018,4]
[339813657,1728022449992,-9188.23323693,0.00018011,2]
[339813658,1728022450016,-150.0,0.00018169,2]
[339813659,1728022450041,-1000.88,0.0001825,2]
[339813660,1728022450066,-261.70268633,0.000184,2]
[339813661,1728022450089,-3000.0,0.000186,2]
[339813662,1728022450113,-150.0,0.00018601,2]
[339813663,1728022450137,-318.26,0.0001865,2]
[339813664,1728022450164,-200.0,0.00019,5]
[339813665,1728022450188,-300.0,0.00019,2]
[339813666,1728022450213,-150.0,0.00019034,2]
[339813667,1728022450239,-150.0,0.00019466,2]
[339813668,1728022450271,-312.25,0.00019549,2]
[339813669,1728022450295,-1000.88,0.000197,2]
[339813670,1728022450320,-150.0,0.00019899,2]
[339813671,1728022450345,-200.0,0.0002,6]
[339813672,1728022450371,-1375.16190379,0.0002,5]
[339813673,1728022450396,-375.28156195,0.0002,5]
[339813674,1728022450421,-465.76826817,0.0002,10]
[339813675,1728022450448,-176.0,0.0002,2]
[339813676,1728022450471,-279.0,0.0002,2]
[339813677,1728022450496,-900.0,0.0002,20]
[339813678,1728022450521,-150.26,0.0002,2]
[339813679,1728022450545,-318.26,0.0002018,2]
[339813680,1728022450570,-150.0,0.00020332,2]
[339813681,1728022450593,-150.0,0.00020764,2]
[339813682,1728022450617,-8084.43,0.00020951,2]
[339813683,1728022450642,-3480.264501,0.00020989,2]
[339813684,1728022450666,-4702.497617,0.00020989,2]
[339813685,1728022450691,-5461.162365,0.00020989,2]
[339813686,1728022450717,-323.048005,0.00020989,2]
[339813687,1728022450744,-558.666732,0.00020989,2]
[339813688,1728022450769,-200.0,0.00021,7]
[339813689,1728022450794,-918.06390542,0.00021,3]
[339813690,1728022930382,-533.80810222,0.00024,40]
[339813691,1728022930426,-167.3,0.00025464,120]
[339813692,1728022930469,-800.0,0.00026986,120]
[339813693,1728022930513,-900.0,0.00028,80]
[339813694,1728022930556,-400.0,0.00028,30]
[339813695,1728022930601,-1000.0,0.00029,30]
[339813696,1728022930651,-167.3,0.00029102,120]
[339813697,1728022930698,-150.0,0.00029113,120]
[339813698,1728022930746,-1000.0,0.000295,30]
[339813699,1728022930792,-507.294264,0.00029781,120]
[339813700,1728022930836,-1000.0,0.0003,30]
[339813701,1728022930877,-2500.0,0.0003,30]
[339813702,1728022930931,-2281.0,0.00031,48]
[339813703,1728022930977,-900.0,0.00032,120]
[339813704,1728022931021,-167.3,0.0003274,120]
[339813705,1728022931062,-2600.0,0.00033,30]
[339813706,1728022931104,-345.76,0.00033151,120]
[339813707,1728022931144,-1035.62,0.00033151,120]
[339813708,1728022931187,-247.17,0.00033756,30]
[339813709,1728022931227,-2510.2,0.00034449,88]
[339813710,1728022931268,-1141.49,0.00035,30]
[339813711,1728022931312,-730.4,0.000352,30]
[339813712,1728022931533,-50000.0,0.00036,36]
[339813713,1728022931576,-900.0,0.00036,120]
[339813714,1728022931619,-2271.0,0.00036,120]
[339813715,1728022931663,-197.242,0.00036709,46]
[339813716,1728022931706,-50000.0,0.00037,37]
[339813717,1728022931747,-183.31169383,0.000372,103]
[339813718,1728022931786,-3908.0,0.000375,30]
[339813719,1728022931824,-2917.74403589,0.000378,30]
[339813720,1728022931865,-5476.8,0.00037898,117]
[339813721,1728022931908,-50000.0,0.00038,38]
[339813722,1728022931958,-152446.32869221,0.00038,120]
[339813723,1728022932001,-999.0,0.00038414,120]
[339813724,1728022932040,-839777.4457572,0.00038415,30]
[339813725,1728022932082,-50000.0,0.00039,39]
[339813726,1728022932123,-376.94063144,0.0003951,120]
[339813727,1728022932168,-1566.689,0.000398,48]
[339813728,1728022932207,-339.50106125,0.0003984,90]
[339813729,1728022932253,-150.0,0.00039996,90]
[339813730,1728022932292,-204.72600503,0.00039999,31]
[339813731,1728022932330,-500.0,0.00039999,31]
[339813732,1728022932369,-582.73716271,0.00039999,31]
[339813733,1728022932408,-500.0,0.00039999,31]
[339813734,1728022932450,-500.0,0.00039999,31]
[339813735,1728022932491,-500.0,0.00039999,31]
[339813736,1728022932531,-500.0,0.00039999,31]
[339813737,1728022932572,-397.99100184,0.00039999,31]
[339813738,1728022932613,-50000.0,0.0004,30]
[339813739,1728022932660,-50000.0,0.0004,40]
[339813740,1728022932704,-1000000.0,0.0004,120]
[339813741,1728022932745,-43661.47067148,0.0004,120]
[339813742,1728022932789,-620058.4299209,0.0004,120]
[339813743,1728022937259,-513.34719692,0.00032876,120]
[339813744,1728022937312,-379941.5700791,0.0004,120]
[339813745,1728022937352,-180.0,0.0004,120]
[339813746,1728022937391,-900.0,0.0004,120]
[339813747,1728022937431,-187.20174789,0.0004,120]
[339813748,1728022937470,-313.52917708,0.0004,120]
[339813749,1728022937512,-890.01422968,0.0004,120]
[339813750,1728022937553,-302.66,0.0004,120]
[339813751,1728022937596,-940.34,0.0004,120]
[339813752,1728022937652,-150.35614243,0.0004,120]
[339813753,1728022937697,-50000.0,0.00041,41]
[339813754,1728022937740,-50000.0,0.00041,31]
[339813755,1728022937785,-1000000.0,0.00041,120]
[339813756,1728022937827,-1000000.0,0.00041,120]
[339813757,1728022937882,-500.0,0.00041095,120]
[339813758,1728022937923,-500.0,0.00041095,120]
[339813759,1728022937963,-500.0,0.00041095,120]
[339813760,1728022938001,-500.0,0.00041095,120]
[339813761,1728022938039,-502.00729809,0.00041095,120]
[339813762,1728022938077,-500.0,0.00041095,120]
[339813763,1728022938116,-500.0,0.00041095,120]
[339813764,1728022938152,-480.82505913,0.00041095,120]
[339813765,1728022938192,-500.0,0.00041095,120]
[339813766,1728022938229,-502.41774602,0.00041095,120]
[339813767,1728022938267,-500.0,0.00041095,120]
[339813768,1728022938307,-500.0,0.00041095,120]
[339813769,1728022938343,-152.45555255,0.00041095,120]
[339813770,1728022938384,-501.8633484,0.00041095,120]
[339813771,1728022938424,-605.09851009,0.00041095,120]
[339813772,1728022938463,-501.70789728,0.00041095,120]
[339813773,1728022938502,-501.14401862,0.00041095,120]
[339813774,1728022938540,-503.19700316,0.00041095,120]
[339813775,1728022938580,-501.96600006,0.00041095,120]
[339813776,1728022938753,-501.86456791,0.00041095,120]
[339813777,1728022938798,-519.47479406,0.00041095,120]
[339813778,1728022938840,-570.21804725,0.00041095,120]
[339813779,1728022938881,-598.3519233,0.00041095,120]
[339813780,1728022938922,-500.0,0.00041095,120]
[339813781,1728022938963,-500.0,0.00041095,120]
[339813782,1728022939006,-503.9387178,0.00041095,120]
[339813783,1728022939046,-500.0,0.00041095,120]
[339813784,1728022939086,-500.0,0.00041095,120]
[339813785,1728022939126,-500.0,0.00041095,120]
[339813786,1728022939166,-500.0,0.00041095,120]
[339813787,1728022939207,-472.5826714,0.00041095,120]
[339813788,1728022939247,-512.43234655,0.00041095,120]
[339813789,1728022939287,-501.96353193,0.00041095,120]
[339813790,1728022939325,-501.64631877,0.00041095,120]
[339813791,1728022939362,-502.44808334,0.00041095,120]
[339813792,1728022939398,-503.29458676,0.00041095,120]
[339813793,1728022939434,-234.27200814,0.00041095,120]
[339813794,1728022939471,-501.72814186,0.00041095,120]
[339813795,1728022939509,-520.32472838,0.00041095,120]
[339813796,1728022939549,-500.0,0.00041095,120]
[339813797,1728022939588,-500.0,0.00041095,120]
[339813798,1728022939633,-527.80760158,0.00041095,120]
[339813799,1728022939673,-502.280448,0.00041095,120]
[339813800,1728022939711,-499.36716441,0.00041095,120]
[339813801,1728022939751,-500.0,0.00041095,120]
[339813802,1728022939793,-502.52632511,0.00041095,120]
[339813803,1728022939831,-500.0,0.00041095,120]
[339813804,1728022939871,-500.0,0.00041095,120]
[339813805,1728022939910,-504.37,0.00041095,120]
[339813806,1728022939951,-500.0,0.00041095,120]
[339813807,1728022939993,-501.54353694,0.00041095,120]
[339813808,1728022940035,-502.92366998,0.00041095,120]
[339813809,1728022940077,-500.0,0.00041095,120]
[339813810,1728022940114,-502.05101468,0.00041095,120]
[339813811,1728022940152,-502.75503742,0.00041095,120]
[339813812,1728022940189,-503.80871507,0.00041095,120]
[339813813,1728022940227,-501.78897071,0.00041095,120]
[339813814,1728022940264,-524.38146528,0.00041095,120]
[339813815,1728022940302,-501.89420797,0.00041095,120]
[339813816,1728022940339,-503.55982719,0.00041095,120]
[339813817,1728022940378,-503.42265063,0.00041095,120]
[339813818,1728022940419,-501.75078698,0.00041095,120]
[339813819,1728022940460,-500.0,0.00041095,120]
[339813820,1728022940500,-529.79188269,0.00041095,120]
[339813821,1728022940538,-500.0,0.00041095,120]
[339813822,1728022940576,-503.61532153,0.00041095,120]
[339813823,1728022940614,-603.29960602,0.00041095,120]
[339813824,1728022940656,-532.0030046,0.00041095,120]
[339813825,1728022940695,-500.0,0.00041095,120]